[Event "Bijnor Open 2023"]
[Site "Bijnor"]
[Date "2023.11.30"]
[Round "2.8"]
[White "Jain Medant"]
[Black "Gopal Krishna Maheshwari"]
[Result "0-1"]
[ECO "A80"]
[WhiteElo "1123"]
[BlackElo "1627"]
[Annotator "NA RC"]
[PlyCount "88"]
[EventDate "2023.11.29"]
[EventCountry "IND"]
[SourceTitle "playchess.com"]
[Source "ChessBase"]
[SourceQuality "1"]
[TimeControl "5400+30"]

1. d4 {[%emt 0:00:02]} d5 {[%emt 0:00:02]} 2. Bf4 {[%emt 0:00:10]} e6 {[%emt 0:00:12]} 3. e3 {[%emt 0:00:06]} f5 {[%emt 0:00:06]} 4. Nf3 {[%emt 0:00:21]} Nf6 {[%emt 0:00:03]} 5. c4 {[%emt 0:00:18]} c6 {[%emt 0:00:12]} 6. c5 {[%emt 0:00:32]} b6 {[%emt 0:05:47]} 7. b4 {[%emt 0:01:01]} a5 {[%emt 0:02:17]} 8. Bxb8 {[%emt 0:01:07]} Rxb8 {[%emt 0:00:30]} 9. Ne5 {[%emt 0:00:44]} Bd7 {[%emt 0:05:00]} 10. Qa4 {[%emt 0:01:08]} Qc7 {[%emt 0:11:37]} 11. Nxd7 {[%emt 0:01:08]} Nxd7 {[%emt 0:01:51]} 12. a3 {[%emt 0:00:12]} b5 {[%emt 0:08:53]} 13. Qb3 {[%emt 0:01:18]} a4 {[%emt 0:01:03]} 14. Qc2 {[%emt 0:00:14]} Be7 {[%emt 0:00:15]} 15. Bd3 {[%emt 0:00:16]} O-O {[%emt 0:01:06]} 16. g3 {[%emt 0:00:47]} Bf6 {[%emt 0:03:28]} 17. Nc3 {[%emt 0:01:03]} g6 {[%emt 0:04:27]} 18. Bf1 {[%emt 0:00:25]} e5 {[%emt 0:00:41]} 19. Ne2 {[%emt 0:00:53]} Rbe8 {[%emt 0:01:17]} 20. Rd1 {[%emt 0:04:42]} exd4 {[%emt 0:06:29]} 21. Nxd4 {[%emt 0:02:33]} f4 {[%emt 0:07:08]} 22. Bh3 {[%emt 0:06:37]} Bxd4 {[%emt 0:01:59]} 23. Rxd4 {[%emt 0:01:57]} fxe3 {[%emt 0:00:24]} 24. O-O {[%emt 0:02:22]} exf2+ {[%emt 0:05:43]} 25. Rxf2 {[%emt 0:00:24]} Ne5 {[%emt 0:01:06]} 26. Rdf4 {[%emt 0:01:17]} Rxf4 {[%emt 0:01:18]} 27. gxf4 {[%emt 0:00:30]} Nc4 {[%emt 0:01:26]} 28. f5 {[%emt 0:00:29]} Re1+ {[%emt 0:01:27]} 29. Bf1 {[%emt 0:00:47]} Ne3 {[%emt 0:01:14]} 30. Qd2 {[%emt 0:00:41]} Rxf1+ {[%emt 0:00:12]} 31. Rxf1 {[%emt 0:00:23]} Nxf1 {[%emt 0:00:08]} 32. Kxf1 {[%emt 0:00:10]} Qf7 {[%emt 0:00:09]} 33. Qf4 {[%emt 0:00:55]} Qxf5 {[%emt 0:00:05]} 34. Qxf5 {[%emt 0:00:13]} gxf5 {[%emt 0:00:24]} 35. Ke2 {[%emt 0:00:22]} Kf7 {[%emt 0:00:00]} 36. Ke3 {[%emt 0:00:13]} Ke6 {[%emt 0:00:00]} 37. Kf4 {[%emt 0:00:32]} d4 {[%emt 0:00:00]} 38. h4 {[%emt 0:00:53]} h6 {[%emt 0:00:00]} 39. h5 {[%emt 0:00:34]} Kf6 {[%emt 0:00:00]} 40. Kg3 {[%emt 0:00:13]} Ke5 {[%emt 0:00:01]} 41. Kf3 {[%emt 0:00:12]} f4 {[%emt 0:00:02]} 42. Ke2 {[%emt 0:00:13]} Ke4 {[%emt 0:00:02]} 43. Kd2 {[%emt 0:00:20]} f3 {[%emt 0:00:02]} 44. Ke1 {[%emt 0:00:13]} Ke3 {[%emt 0:00:01]} 0-1

[Event "Bijnor Open 2023"]
[Site "Bijnor"]
[Date "2023.11.30"]
[Round "2.9"]
[White "Sparsh Yadav"]
[Black "Rhishav Mondal"]
[Result "1-0"]
[ECO "C45"]
[WhiteElo "1598"]
[BlackElo "1123"]
[Annotator "NA RC"]
[PlyCount "120"]
[EventDate "2023.11.29"]
[EventCountry "IND"]
[SourceTitle "playchess.com"]
[Source "ChessBase"]
[SourceQuality "1"]
[TimeControl "5400+30"]

1. e4 {[%emt 0:00:14]} e5 {[%emt 0:00:16]} 2. Nf3 {[%emt 0:00:28]} Nc6 {[%emt 0:00:02]} 3. d4 {[%emt 0:00:14]} exd4 {[%emt 0:00:28]} 4. Nxd4 {[%emt 0:00:09]} Bc5 {[%emt 0:00:10]} 5. Nxc6 {[%emt 0:00:16]} Qf6 {[%emt 0:01:38]} 6. Qf3 {[%emt 0:00:09]} dxc6 {[%emt 0:02:21]} 7. Bd3 {[%emt 0:00:21]} Be6 {[%emt 0:00:34]} 8. Nc3 {[%emt 0:00:27]} Bb4 {[%emt 0:01:06]} 9. Bd2 {[%emt 0:00:13]} Qxf3 {[%emt 0:01:10]} 10. gxf3 {[%emt 0:00:06]} Nf6 {[%emt 0:00:19]} 11. Rg1 {[%emt 0:00:13]} g6 {[%emt 0:01:41]} 12. a3 {[%emt 0:00:17]} Bf8 {[%emt 0:01:27]} 13. Ke2 {[%emt 0:01:13]} Bg7 {[%emt 0:00:50]} 14. f4 {[%emt 0:00:15]} O-O-O {[%emt 0:02:00]} 15. f3 {[%emt 0:01:03]} Rhe8 {[%emt 0:01:03]} 16. Be3 {[%emt 0:00:20]} b6 {[%emt 0:00:54]} 17. Rad1 {[%emt 0:01:43]} Kb7 {[%emt 0:00:41]} 18. Kf2 {[%emt 0:00:34]} Bc8 {[%emt 0:02:14]} 19. f5 {[%emt 0:01:00]} Rd7 {[%emt 0:03:01]} 20. Bc4 {[%emt 0:00:57]} Ree7 {[%emt 0:02:08]} 21. Rxd7 {[%emt 0:07:16]} Nxd7 {[%emt 0:02:08]} 22. Be2 {[%emt 0:03:20]} a6 {[%emt 0:02:58]} 23. h4 {[%emt 0:00:49]} Nf6 {[%emt 0:00:58]} 24. Bd3 {[%emt 0:02:05]} c5 {[%emt 0:02:45]} 25. f4 {[%emt 0:05:26]} Re8 {[%emt 0:02:44]} 26. e5 {[%emt 0:00:56]} Nd7 {[%emt 0:01:53]} 27. h5 {[%emt 0:01:01]} Nf8 {[%emt 0:04:48]} 28. hxg6 {[%emt 0:01:12]} hxg6 {[%emt 0:00:50]} 29. fxg6 {[%emt 0:00:27]} fxg6 {[%emt 0:00:32]} 30. Bxg6 {[%emt 0:00:32]} Nxg6 {[%emt 0:00:25]} 31. Rxg6 {[%emt 0:00:12]} Re7 {[%emt 0:00:06]} 32. Nd5 {[%emt 0:03:07]} Rd7 {[%emt 0:01:07]} 33. e6 {[%emt 0:00:56]} Rxd5 {[%emt 0:01:48]} 34. e7 {[%emt 0:00:08]} Bd7 {[%emt 0:00:03]} 35. Rxg7 {[%emt 0:00:24]} Rh5 {[%emt 0:00:10]} 36. Rg8 {[%emt 0:01:32]} Rh2+ {[%emt 0:01:09]} 37. Ke1 {[%emt 0:00:40]} Rxc2 {[%emt 0:00:50]} 38. e8=Q {[%emt 0:00:24]} Bxe8 {[%emt 0:00:29]} 39. Rxe8 {[%emt 0:00:12]} Rxb2 {[%emt 0:00:07]} 40. f5 {[%emt 0:00:01]} Rh2 {[%emt 0:00:36]} 41. f6 {[%emt 0:00:17]} Rh7 {[%emt 0:00:24]} 42. Re7 {[%emt 0:00:18]} Rh8 {[%emt 0:00:55]} 43. f7 {[%emt 0:00:08]} Rf8 {[%emt 0:00:52]} 44. Bh6 {[%emt 0:00:10]} Rxf7 {[%emt 0:00:31]} 45. Rxf7 {[%emt 0:00:08]} Kc6 {[%emt 0:01:30]} 46. Bf4 {[%emt 0:00:59]} a5 {[%emt 0:00:33]} 47. a4 {[%emt 0:00:16]} b5 {[%emt 0:00:38]} 48. Rxc7+ {[%emt 0:00:17]} Kb6 {[%emt 0:03:07]} 49. axb5 {[%emt 0:00:22]} Kxb5 {[%emt 0:01:55]} 50. Kd2 {[%emt 0:00:13]} a4 {[%emt 0:00:14]} 51. Kc2 {[%emt 0:00:17]} a3 {[%emt 0:00:42]} 52. Ra7 {[%emt 0:00:09]} Kb4 {[%emt 0:00:20]} 53. Bd2+ {[%emt 0:00:12]} Kc4 {[%emt 0:00:20]} 54. Rxa3 {[%emt 0:00:15]} Kd4 {[%emt 0:00:33]} 55. Be3+ {[%emt 0:00:15]} Kd5 {[%emt 0:01:12]} 56. Ra5 {[%emt 0:00:14]} Ke4 {[%emt 0:00:40]} 57. Bxc5 {[%emt 0:00:10]} Kf3 {[%emt 0:00:32]} 58. Kd3 {[%emt 0:00:14]} Kg3 {[%emt 0:00:42]} 59. Ke3 {[%emt 0:00:10]} Kg2 {[%emt 0:00:41]} 60. Bb4 {[%emt 0:00:20]} Kh2 {[%emt 0:01:36]} 1-0

[Event "Bijnor Open 2023"]
[Site "Bijnor"]
[Date "2023.11.30"]
[Round "2.10"]
[White "Ashwin Tyagi"]
[Black "Shaurya Prabhakar"]
[Result "1/2-1/2"]
[ECO "C54"]
[WhiteElo "1114"]
[BlackElo "1578"]
[Annotator "NA RC"]
[PlyCount "67"]
[EventDate "2023.11.29"]
[EventCountry "IND"]
[SourceTitle "playchess.com"]
[Source "ChessBase"]
[SourceQuality "1"]
[TimeControl "5400+30"]

1. e4 {[%emt 0:00:07]} e5 {[%emt 0:01:34]} 2. Nf3 {[%emt 0:00:19]} Nc6 {[%emt 0:00:19]} 3. Bc4 {[%emt 0:00:13]} Bc5 {[%emt 0:00:14]} 4. c3 {[%emt 0:00:18]} Nf6 {[%emt 0:00:07]} 5. d4 {[%emt 0:00:31]} exd4 {[%emt 0:00:08]} 6. cxd4 {[%emt 0:00:03]} Bb4+ {[%emt 0:00:11]} 7. Nc3 {[%emt 0:00:15]} Nxe4 {[%emt 0:00:13]} 8. O-O {[%emt 0:01:04]} Bxc3 {[%emt 0:00:10]} 9. d5 {[%emt 0:01:10]} Ne5 {[%emt 0:01:14]} 10. Qe2 {[%emt 0:05:24]} O-O {[%emt 0:35:29]} 11. Qxe4 {[%emt 0:04:44]} Nxf3+ {[%emt 0:00:41]} 12. Qxf3 {[%emt 0:00:23]} Be5 {[%emt 0:01:06]} 13. Bf4 {[%emt 0:10:48]} d6 {[%emt 0:03:30]} 14. Bxe5 {[%emt 0:03:38]} dxe5 {[%emt 0:00:08]} 15. Rfe1 {[%emt 0:00:59]} Qd6 {[%emt 0:00:28]} 16. Qg3 {[%emt 0:04:15]} f6 {[%emt 0:01:03]} 17. Bd3 {[%emt 0:09:03]} Bd7 {[%emt 0:09:56]} 18. Qh4 {[%emt 0:01:31]} f5 {[%emt 0:01:04]} 19. f3 {[%emt 0:08:30]} Rf6 {[%emt 0:04:14]} 20. Rac1 {[%emt 0:05:55]} Kh8 {[%emt 0:14:10]} 21. Qc4 {[%emt 0:01:57]} c6 {[%emt 0:01:50]} 22. dxc6 {[%emt 0:01:11]} Bxc6 {[%emt 0:00:14]} 23. Rcd1 {[%emt 0:01:58]} Qc7 {[%emt 0:03:23]} 24. Qc3 {[%emt 0:06:36]} Re8 {[%emt 0:01:45]} 25. Kh1 {[%emt 0:01:50]} Qb8 {[%emt 0:02:50]} 26. Rc1 {[%emt 0:02:21]} e4 {[%emt 0:03:59]} 27. fxe4 {[%emt 0:00:17]} f4 {[%emt 0:04:45]} 28. Rf1 {[%emt 0:03:25]} Rh6 {[%emt 0:00:45]} 29. Rf3 {[%emt 0:04:19]} Rhe6 {[%emt 0:00:31]} 30. h3 {[%emt 0:03:26]} Bxe4 {[%emt 0:01:57]} 31. Bxe4 {[%emt 0:00:16]} Rxe4 {[%emt 0:00:05]} 32. Qc7 {[%emt 0:01:10]} Re1+ {[%emt 0:00:51]} 33. Kh2 {[%emt 0:00:26]} Rxc1 {[%emt 0:00:07]} 34. Qxc1 {[%emt 0:00:27]} 1/2-1/2

[Event "Bijnor Open 2023"]
[Site "Bijnor"]
[Date "2023.12.01"]
[Round "3.1"]
[White "Kulkarni, Vikramaditya"]
[Black "Yash Dahiya"]
[Result "1-0"]
[ECO "B10"]
[WhiteElo "2209"]
[BlackElo "1303"]
[Annotator "RC"]
[PlyCount "77"]
[EventDate "2023.11.29"]
[EventCountry "IND"]
[SourceTitle "playchess.com"]
[Source "ChessBase"]
[SourceQuality "1"]
[TimeControl "5400+30"]

1. e4 {[%emt 0:04:19]} c6 {[%emt 0:04:40]} 2. Nf3 {[%emt 0:00:00]} d5 {[%emt 0:01:03]} 3. d3 {[%emt 0:00:00]} dxe4 {[%emt 0:03:19]} 4. dxe4 {[%emt 0:00:00]} Qxd1+ {[%emt 0:00:24]} 5. Kxd1 {[%emt 0:00:00]} Bg4 {[%emt 0:00:49]} 6. Be2 {[%emt 0:00:00]} f6 {[%emt 0:04:12]} 7. h3 {[%emt 0:00:00]} Bh5 {[%emt 0:00:19]} 8. e5 {[%emt 0:01:14]} Bxf3 {[%emt 0:11:03]} 9. Bxf3 {[%emt 0:00:06]} fxe5 {[%emt 0:00:19]} 10. a4 {[%emt 0:09:57]} Nf6 {[%emt 0:05:54]} 11. Nd2 {[%emt 0:01:32]} e6 {[%emt 0:04:40]} 12. a5 {[%emt 0:02:31]} Bc5 {[%emt 0:04:45]} 13. Ra4 {[%emt 0:06:07]} O-O {[%emt 0:11:27]} 14. Ke2 {[%emt 0:05:03]} Na6 {[%emt 0:05:14]} 15. c3 {[%emt 0:03:16]} Nc7 {[%emt 0:06:14]} 16. Re1 {[%emt 0:06:35]} Rad8 {[%emt 0:08:48]} 17. Kf1 {[%emt 0:02:03]} Rd7 {[%emt 0:14:30]} 18. Rxe5 {[%emt 0:03:37]} Bd6 {[%emt 0:05:19]} 19. Re1 {[%emt 0:00:28]} Nfd5 {[%emt 0:03:25]} 20. Nc4 {[%emt 0:07:55]} Bf4 {[%emt 0:00:52]} 21. Ne5 {[%emt 0:00:15]} Re7 {[%emt 0:01:01]} 22. Bxf4 {[%emt 0:08:10]} Rxf4 {[%emt 0:02:22]} 23. Rxf4 {[%emt 0:01:08]} Nxf4 {[%emt 0:00:08]} 24. Rd1 {[%emt 0:00:53]} Nfd5 {[%emt 0:00:44]} 25. c4 {[%emt 0:03:58]} Nf6 {[%emt 0:00:23]} 26. b4 {[%emt 0:02:43]} g6 {[%emt 0:00:40]} 27. Bxc6 {[%emt 0:04:23]} bxc6 {[%emt 0:00:53]} 28. Nxc6 {[%emt 0:00:04]} Re8 {[%emt 0:00:23]} 29. Nxa7 {[%emt 0:00:09]} Kf7 {[%emt 0:00:35]} 30. b5 {[%emt 0:00:28]} Ra8 {[%emt 0:00:31]} 31. b6 {[%emt 0:00:26]} Na6 {[%emt 0:00:18]} 32. Nc6 {[%emt 0:03:36]} Nc5 {[%emt 0:00:39]} 33. f4 {[%emt 0:16:07]} Ke8 {[%emt 0:00:27]} 34. g4 {[%emt 0:00:55]} Rc8 {[%emt 0:00:37]} 35. Ne5 {[%emt 0:06:00]} Ra8 {[%emt 0:00:18]} 36. g5 {[%emt 0:02:53]} Nfd7 {[%emt 0:00:27]} 37. b7 {[%emt 0:00:18]} Rd8 {[%emt 0:00:44]} 38. Nxd7 {[%emt 0:00:43]} Nxd7 {[%emt 0:00:31]} 39. a6 {[%emt 0:00:12]} 1-0

[Event "Bijnor Open 2023"]
[Site "Bijnor"]
[Date "2023.12.01"]
[Round "3.2"]
[White "Ramnathan, Balasubramaniam"]
[Black "Shrey Rajendra"]
[Result "1-0"]
[ECO "A03"]
[WhiteElo "1920"]
[BlackElo "1283"]
[Annotator "NA RC"]
[PlyCount "59"]
[EventDate "2023.11.29"]
[EventCountry "IND"]
[SourceTitle "playchess.com"]
[Source "ChessBase"]
[SourceQuality "1"]
[TimeControl "5400+30"]

1. e3 {[%emt 0:00:15]} d5 {[%emt 0:01:09]} 2. b3 {[%emt 0:01:02]} Nf6 {[%emt 0:01:57]} 3. Bb2 {[%emt 0:00:07]} e6 {[%emt 0:02:48]} 4. f4 {[%emt 0:00:13]} Nbd7 {[%emt 0:02:32]} 5. Nf3 {[%emt 0:00:09]} b6 {[%emt 0:04:03]} 6. Bb5 {[%emt 0:02:14]} Bb7 {[%emt 0:01:16]} 7. Ne5 {[%emt 0:00:42]} Rc8 {[%emt 0:08:22]} 8. Bc6 {[%emt 0:03:13]} Ba8 {[%emt 0:01:31]} 9. c4 {[%emt 0:04:25]} dxc4 {[%emt 0:04:16]} 10. bxc4 {[%emt 0:01:32]} Bd6 {[%emt 0:01:52]} 11. Bxa8 {[%emt 0:03:22]} Rxa8 {[%emt 0:00:58]} 12. Nc6 {[%emt 0:00:11]} Qc8 {[%emt 0:01:32]} 13. Nc3 {[%emt 0:00:17]} O-O {[%emt 0:02:42]} 14. Nb5 {[%emt 0:01:25]} Re8 {[%emt 0:00:23]} 15. Qf3 {[%emt 0:01:08]} e5 {[%emt 0:04:35]} 16. Nbxa7 {[%emt 0:08:35]} Qa6 {[%emt 0:15:12]} 17. fxe5 {[%emt 0:01:28]} Nxe5 {[%emt 0:18:20]} 18. Nxe5 {[%emt 0:00:21]} Bxe5 {[%emt 0:06:30]} 19. Bxe5 {[%emt 0:00:24]} Rxa7 {[%emt 0:02:14]} 20. Bxf6 {[%emt 0:00:33]} gxf6 {[%emt 0:00:36]} 21. Qg4+ {[%emt 0:01:10]} Kh8 {[%emt 0:04:11]} 22. O-O {[%emt 0:00:09]} Rg8 {[%emt 0:06:48]} 23. Qd4 {[%emt 0:00:21]} Qb7 {[%emt 0:03:12]} 24. Qxf6+ {[%emt 0:00:19]} Rg7 {[%emt 0:00:15]} 25. Rf3 {[%emt 0:00:51]} Ra8 {[%emt 0:01:02]} 26. Rg3 {[%emt 0:00:17]} Rag8 {[%emt 0:00:33]} 27. Rf1 {[%emt 0:00:33]} Qa8 {[%emt 0:01:30]} 28. Rf4 {[%emt 0:02:01]} Qa5 {[%emt 0:02:59]} 29. Rxg7 {[%emt 0:00:46]} Rxg7 {[%emt 0:01:07]} 30. Rg4 {[%emt 0:00:12]} 1-0

[Event "Bijnor Open 2023"]
[Site "Bijnor"]
[Date "2023.12.01"]
[Round "3.3"]
[White "Lalit Jindal"]
[Black "Sharma, Harish"]
[Result "1-0"]
[ECO "C05"]
[WhiteElo "1332"]
[BlackElo "1904"]
[Annotator "NA RC"]
[PlyCount "129"]
[EventDate "2023.11.29"]
[EventCountry "IND"]
[SourceTitle "playchess.com"]
[Source "ChessBase"]
[SourceQuality "1"]
[TimeControl "5400+30"]

1. e4 {[%emt 0:00:13]} e6 {[%emt 0:00:04]} 2. d4 {[%emt 0:00:15]} d5 {[%emt 0:00:08]} 3. Nd2 {[%emt 0:00:36]} Nf6 {[%emt 0:00:37]} 4. exd5 {[%emt 0:02:29]} exd5 {[%emt 0:00:17]} 5. Bd3 {[%emt 0:00:09]} Bd6 {[%emt 0:00:16]} 6. Ne2 {[%emt 0:00:34]} O-O {[%emt 0:00:31]} 7. h3 {[%emt 0:00:23]} c6 {[%emt 0:00:58]} 8. O-O {[%emt 0:00:21]} Re8 {[%emt 0:00:57]} 9. Re1 {[%emt 0:00:49]} Nbd7 {[%emt 0:00:12]} 10. Nf1 {[%emt 0:00:12]} Nf8 {[%emt 0:00:46]} 11. c3 {[%emt 0:01:04]} Ng6 {[%emt 0:00:47]} 12. Bg5 {[%emt 0:00:27]} h6 {[%emt 0:00:32]} 13. Bxg6 {[%emt 0:00:09]} fxg6 {[%emt 0:01:10]} 14. Bh4 {[%emt 0:00:02]} Bf5 {[%emt 0:02:02]} 15. Bg3 {[%emt 0:02:47]} g5 {[%emt 0:00:32]} 16. Bxd6 {[%emt 0:00:02]} Qxd6 {[%emt 0:00:02]} 17. Neg3 {[%emt 0:00:01]} Bg6 {[%emt 0:00:23]} 18. Qd2 {[%emt 0:04:39]} b5 {[%emt 0:01:25]} 19. a3 {[%emt 0:00:20]} a5 {[%emt 0:00:06]} 20. b4 {[%emt 0:00:01]} a4 {[%emt 0:02:00]} 21. Rxe8+ {[%emt 0:00:05]} Rxe8 {[%emt 0:00:12]} 22. Re1 {[%emt 0:00:08]} Re6 {[%emt 0:02:31]} 23. Rxe6 {[%emt 0:00:46]} Qxe6 {[%emt 0:00:11]} 24. Qe3 {[%emt 0:00:20]} Kf7 {[%emt 0:00:08]} 25. Qxe6+ {[%emt 0:00:04]} Kxe6 {[%emt 0:00:03]} 26. Ne3 {[%emt 0:00:02]} Bd3 {[%emt 0:00:17]} 27. f3 {[%emt 0:00:04]} h5 {[%emt 0:04:02]} 28. Kf2 {[%emt 0:04:02]} Bg6 {[%emt 0:05:38]} 29. Ne2 {[%emt 0:03:15]} Ne8 {[%emt 0:00:20]} 30. g4 {[%emt 0:00:33]} h4 {[%emt 0:01:14]} 31. Nf1 {[%emt 0:02:30]} Kf6 {[%emt 0:00:37]} 32. Ke3 {[%emt 0:00:12]} Nc7 {[%emt 0:00:32]} 33. Kd2 {[%emt 0:03:13]} Ne6 {[%emt 0:00:40]} 34. Ne3 {[%emt 0:00:02]} Bb1 {[%emt 0:00:44]} 35. Ng2 {[%emt 0:00:49]} g6 {[%emt 0:01:52]} 36. Nc1 {[%emt 0:02:07]} Nd8 {[%emt 0:00:27]} 37. Nd3 {[%emt 0:01:03]} Nf7 {[%emt 0:00:28]} 38. Ne3 {[%emt 0:03:59]} Ba2 {[%emt 0:02:14]} 39. Nc5 {[%emt 0:00:19]} Ke7 {[%emt 0:00:29]} 40. Na6 {[%emt 0:03:03]} Bb3 {[%emt 0:09:03]} 41. Nc5 {[%emt 0:01:53]} Nd6 {[%emt 0:00:54]} 42. Nd3 {[%emt 0:00:13]} Nc4+ {[%emt 0:01:21]} 43. Nxc4 {[%emt 0:00:20]} Bxc4 {[%emt 0:00:03]} 44. Ne5 {[%emt 0:00:01]} Bf1 {[%emt 0:00:14]} 45. Ke1 {[%emt 0:00:44]} Bc4 {[%emt 0:02:08]} 46. Nxg6+ {[%emt 0:00:13]} Ke6 {[%emt 0:02:06]} 47. Ne5 {[%emt 0:00:04]} Ba2 {[%emt 0:00:33]} 48. Nxc6 {[%emt 0:01:09]} Bb1 {[%emt 0:00:29]} 49. Kd2 {[%emt 0:00:03]} Bg6 {[%emt 0:00:15]} 50. Ne5 {[%emt 0:00:06]} Bb1 {[%emt 0:01:37]} 51. Ke3 {[%emt 0:00:04]} Kf6 {[%emt 0:01:46]} 52. f4 {[%emt 0:02:31]} Be4 {[%emt 0:03:55]} 53. Nf3 {[%emt 0:00:03]} Bxf3 {[%emt 0:03:53]} 54. Kxf3 {[%emt 0:00:02]} Kg6 {[%emt 0:00:03]} 55. fxg5 {[%emt 0:00:43]} Kxg5 {[%emt 0:00:05]} 56. Ke3 {[%emt 0:00:16]} Kf6 {[%emt 0:00:38]} 57. Kf4 {[%emt 0:00:08]} Kg6 {[%emt 0:00:02]} 58. Ke5 {[%emt 0:01:02]} Kg5 {[%emt 0:00:05]} 59. Kxd5 {[%emt 0:00:30]} Kf4 {[%emt 0:00:04]} 60. Kc5 {[%emt 0:00:20]} Kg3 {[%emt 0:00:08]} 61. g5 {[%emt 0:00:03]} Kxh3 {[%emt 0:00:05]} 62. g6 {[%emt 0:00:01]} Kh2 {[%emt 0:00:32]} 63. g7 {[%emt 0:00:01]} h3 {[%emt 0:00:57]} 64. g8=Q {[%emt 0:00:10]} Kh1 {[%emt 0:00:13]} 65. Qd5+ {[%emt 0:00:26]} 1-0

[Event "Bijnor Open 2023"]
[Site "Bijnor"]
[Date "2023.12.01"]
[Round "3.4"]
[White "Manish Pal"]
[Black "Daksh Goyal"]
[Result "1-0"]
[ECO "B18"]
[WhiteElo "1321"]
[BlackElo "1814"]
[Annotator "NA RC"]
[PlyCount "131"]
[EventDate "2023.11.29"]
[EventCountry "IND"]
[SourceTitle "playchess.com"]
[Source "ChessBase"]
[SourceQuality "1"]
[TimeControl "5400+30"]

1. e4 {[%emt 0:00:26]} c6 {[%emt 0:00:02]} 2. d4 {[%emt 0:00:33]} d5 {[%emt 0:00:04]} 3. Nd2 {[%emt 0:02:19]} dxe4 {[%emt 0:00:02]} 4. Nxe4 {[%emt 0:00:13]} Bf5 {[%emt 0:00:02]} 5. Ng3 {[%emt 0:00:22]} Bg6 {[%emt 0:00:01]} 6. Nf3 {[%emt 0:02:42]} Nd7 {[%emt 0:00:02]} 7. Bd3 {[%emt 0:03:45]} e6 {[%emt 0:01:17]} 8. h4 {[%emt 0:02:08]} Bxd3 {[%emt 0:12:19]} 9. Qxd3 {[%emt 0:00:22]} Ngf6 {[%emt 0:00:13]} 10. Bg5 {[%emt 0:13:28]} Qa5+ {[%emt 0:12:34]} 11. Bd2 {[%emt 0:03:28]} Qb6 {[%emt 0:04:29]} 12. O-O {[%emt 0:05:55]} Be7 {[%emt 0:04:08]} 13. Rfe1 {[%emt 0:07:39]} O-O {[%emt 0:14:26]} 14. Nf5 {[%emt 0:02:35]} exf5 {[%emt 0:06:56]} 15. Rxe7 {[%emt 0:00:11]} Qxb2 {[%emt 0:03:38]} 16. Ree1 {[%emt 0:02:43]} Qb5 {[%emt 0:03:20]} 17. Qxb5 {[%emt 0:05:01]} cxb5 {[%emt 0:00:14]} 18. Reb1 {[%emt 0:00:05]} a6 {[%emt 0:05:46]} 19. a4 {[%emt 0:00:02]} Rfc8 {[%emt 0:00:52]} 20. axb5 {[%emt 0:01:09]} Rxc2 {[%emt 0:00:29]} 21. bxa6 {[%emt 0:01:42]} Rxa6 {[%emt 0:01:27]} 22. Rc1 {[%emt 0:05:11]} Ne4 {[%emt 0:04:35]} 23. Rxc2 {[%emt 0:01:39]} Rxa1+ {[%emt 0:00:04]} 24. Kh2 {[%emt 0:02:48]} h6 {[%emt 0:00:30]} 25. Be3 {[%emt 0:01:20]} Rb1 {[%emt 0:17:07]} 26. Rc8+ {[%emt 0:04:53]} Kh7 {[%emt 0:00:19]} 27. Rc7 {[%emt 0:00:06]} Nef6 {[%emt 0:00:49]} 28. Kg3 {[%emt 0:06:34]} ({White should play} 28. Nd2 $15 Rb4 29. Kh3) 28... b5 $11 {[%emt 0:03:28]} ({Black should try} 28... Nb6 $17 29. Rc1 (29. Rxf7 $2 {is the wrong capture.} Nbd5 $19) (29. Rxb7 f4+ 30. Bxf4 Nh5+ 31. Kg4 Nxf4 $17) 29... Ne4+ 30. Kh2 Rxc1 31. Bxc1 Nxf2) 29. Ne5 $1 {[%emt 0:01:11]} Nxe5 {[%emt 0:02:13]} 30. dxe5 {[%emt 0:00:03]} Nh5+ {[%emt 0:01:52]} 31. Kf3 {[%emt 0:00:38]} Kg6 {[%emt 0:00:45]} 32. Rc6+ {[%emt 0:03:46]} f6 {[%emt 0:00:23]} 33. g3 {[%emt 0:00:50]} Rb4 {[%emt 0:00:55]} 34. Bc5 {[%emt 0:01:54]} Rb3+ {[%emt 0:01:03]} 35. Kg2 {[%emt 0:01:10]} f4 $2 {[%emt 0:01:02]} (35... Rd3 $1 $14) 36. e6 $2 {[%emt 0:00:55]} (36. g4 $18 f3+ 37. Kh2) 36... fxg3 {[%emt 0:00:21]} 37. fxg3 {[%emt 0:00:30]} Rb2+ {[%emt 0:00:27]} 38. Kf3 {[%emt 0:00:55]} Rb3+ {[%emt 0:00:04]} 39. Kf2 {[%emt 0:00:02]} Rb2+ {[%emt 0:00:02]} 40. Kf3 {[%emt 0:01:04]} (40. Kg1 $1 $14 Nxg3 41. e7 Ne2+ 42. Kf2 Nd4+ 43. Kf1 (43. Ke3 Nf5+ 44. Kf4 Nxe7 $11) 43... Rb1+ 44. Kf2 Rb2+ 45. Kg1 Ne2+ 46. Kf2 Nd4+) 40... Rb3+ {[%emt 0:00:01]} 41. Kg2 {[%emt 0:00:02]} Rb2+ {[%emt 0:00:10]} 42. Kh3 {[%emt 0:03:47]} Re2 {[%emt 0:00:35]} 43. e7 {[%emt 0:00:11]} Kf7 {[%emt 0:01:27]} 44. Rc8 {[%emt 0:00:31]} Rxe7 {[%emt 0:00:21]} 45. Bxe7 {[%emt 0:00:04]} Kxe7 {[%emt 0:00:02]} 46. Rb8 {[%emt 0:00:28]} f5 {[%emt 0:01:08]} 47. Rxb5 {[%emt 0:00:02]} Ke6 {[%emt 0:00:44]} 48. Kg2 {[%emt 0:00:19]} Nf6 {[%emt 0:00:26]} 49. Kf3 {[%emt 0:00:16]} g5 {[%emt 0:00:13]} 50. Ra5 {[%emt 0:01:49]} Ng4 {[%emt 0:00:50]} 51. Ra6+ {[%emt 0:01:04]} Kd5 {[%emt 0:00:43]} 52. Ra5+ {[%emt 0:04:34]} Ke6 {[%emt 0:00:04]} 53. Ra6+ {[%emt 0:00:45]} Kd5 {[%emt 0:00:02]} 54. Rb6 {[%emt 0:00:50]} Ne5+ {[%emt 0:00:32]} 55. Kg2 {[%emt 0:00:05]} gxh4 $2 {[%emt 0:01:44]} (55... Ng4 $16) 56. gxh4 {[%emt 0:00:02]} Ng4 {[%emt 0:00:17]} 57. Kf3 {[%emt 0:00:13]} Ke5 {[%emt 0:00:37]} 58. Rb5+ {[%emt 0:00:14]} Kf6 {[%emt 0:00:43]} 59. Kf4 {[%emt 0:00:03]} Kg6 {[%emt 0:00:09]} 60. Rxf5 {[%emt 0:01:16]} Nf2 {[%emt 0:00:06]} 61. h5+ {[%emt 0:00:18]} Kg7 {[%emt 0:00:42]} 62. Ra5 {[%emt 0:00:02]} Nh3+ {[%emt 0:00:18]} 63. Kf5 {[%emt 0:00:23]} Ng5 {[%emt 0:00:07]} 64. Ra7+ {[%emt 0:00:07]} Kf8 {[%emt 0:01:00]} 65. Kg6 {[%emt 0:00:17]} Ne6 {[%emt 0:00:11]} 66. Kf6 {[%emt 0:01:07]} 1-0